Cogmind - Beta 13 @@@ ROGUE MODE // 2024.04.14 @ 17:58:08 Player: pro100_Player Result: Destroyed by Y-45 Defender with Heavy Assault Rifle Performance ------------- Evolutions (1) 500 Regions Visited (2) 400 Robots Destroyed (5) 25 Value Destroyed (159) 159 Prototype IDs (1) 20 Alien Tech Used (0) 0 Bonus (0) 0 TOTAL SCORE: 1104 Bonus ------- None Cogmind --------- Core Integrity 0/400 Matter 300/300 Energy 99/100 System Corruption 6% Temperature Cool (9) Movement Core (50) Location -9/Materials Parts ------- > --- POWER (1) -------- (None) > --- PROPULSION (3) --- (None) > --- UTILITY (2) ------ Heat Sink > --- WEAPON (3) ------- (None) > --- INVENTORY (5) ---- (None) Peak State ------------ > --- POWER ------------ Light Ion Engine > --- PROPULSION ------- Light Treads Light Treads > --- UTILITY ---------- Small Storage Unit > --- WEAPON ----------- Light Assault Rifle > --- INVENTORY -------- (None) [Rating: 5] Favorites ----------- Power Light Ion Engine Engine Light Ion Engine Propulsion Light Treads Treads Light Treads Utility Small Storage Unit Device Heat Sink Storage Small Storage Unit Protection Core Shielding Weapon Light Assault Rifle Energy Gun Small Laser Ballistic Gun Light Assault Rifle Build | -11 -10 -9 ------- Run | Yrd Mat Mat Slots Evolved 2 | . . 2 Power . | . . . Propulsion 1 | . . 1 Utility . | . . . Weapon 1 | . . 1 Parts Attached 10 | 5 1 4 Power 2 | 1 . 1 Engine 2 | 1 . 1 Core . | . . . Reactor . | . . . Propulsion 2 | 2 . . Treads 2 | 2 . . Leg . | . . . Wheel . | . . . Hover . | . . . Flight . | . . . Utility 3 | 1 1 1 Device 1 | . . 1 Storage 1 | 1 . . Processor . | . . . Hackware . | . . . Protection 1 | . 1 . Artifact . | . . . Weapon 3 | 1 . 2 Energy Gun 2 | . . 2 Energy Cannon . | . . . Ballistic Gun 1 | 1 . . Ballistic Cannon . | . . . Launcher . | . . . Special Weapon . | . . . Impact Weapon . | . . . Slashing Weapon . | . . . Piercing Weapon . | . . . Special Melee Weapon . | . . . Unidentified Prototypes 1 | . . 1 Parts Lost 9 | . 3 6 Power 2 | . 1 1 Propulsion 2 | . 1 1 Utility 2 | . . 2 Weapon 3 | . 1 2 Highest Loss Streak 6 | . 2 6 To Critical Strikes . | . . . Average Slot Usage (%) 52 | . 62 26 Engine 10 | . 13 1 Treads 17 | . 22 2 Storage 12 | . 14 7 Protection 4 | . 2 8 Ballistic Gun 6 | . 8 . Naked Turns . | . . . Heaviest Build 9 | 9 9 7 Greatest Support 40 | 40 40 20 Greatest Overweight (x) 2 | . . 2 Average Overweight (x) . | . . . Largest Inventory Capacity 8 | 8 8 8 Average Capacity 7 | 5 8 7 Most Carried 5 | 5 1 2 Average Carried . | 2 . . Final Capacity 8 | 8 8 5 Final Carried . | . . . Class Distribution -------------------- 100% | Mutant Dominant Class ---------------- Mutant | -10/Materials Mutant | -9/Materials Resources | -11 -10 -9 ----------- Run | Yrd Mat Mat Matter Collected 298 | 238 45 15 Remotely . | . . . Salvage Created 190 | . 141 49 Parts 10 | . 5 5 Haulers Intercepted . | . . . Recyclers Shooed 1 | . . 1 Parts Field Recycled . | . . . Retrieved Matter . | . . . Parts Self-Destructed . | . . . Prevented . | . . . Kills | -11 -10 -9 ------- Run | Yrd Mat Mat Combat Hostiles Destroyed 5 | . 3 2 Guns 5 | . 3 2 Classes Destroyed 2 | . 1 1 Swarmer 1 | . . 1 Grunt 4 | . 3 1 Best Kill Streak 2 | . 1 2 Combat Bots Only 2 | . 1 2 Max Kills in Single Turn 1 | . 1 1 Gunslinging . | . . . Exploded . | . . . Melee . | . . . Uniques/NPCs Destroyed . | . . . Combat | -11 -10 -9 -------- Run | Yrd Mat Mat Hostile Shots Fired 149 | . 53 96 Missed 38 | . 13 25 Damage Taken 1351 | . 553 798 Core 528 | . 124 404 Absorbed by Shields . | . . . Redirected to Shielding 49 | . . 49 Core Remaining (%) 75 | 100 50 . Volleys Fired 51 | . 41 10 Largest 1 | . 1 1 Hottest 56 | . 20 56 Shots Fired 51 | . 41 10 Gun 51 | . 41 10 Cannon . | . . . Launcher . | . . . Special . | . . . Kinetic 41 | . 41 . Thermal 10 | . . 10 Explosive . | . . . Electromagnetic . | . . . Robot Hit Streak 15 | . 15 9 Robot Miss Streak 3 | . 3 2 Penetration Max . | . . . Secondary Targets . | . . . Shots Hit Robots 38 | . 31 7 Core Hits 16 | . 10 6 Critical Kills . | . . . Critical Parts Destroyed 1 | . 1 . Critical Strikes 1 | . 1 . Destroy 1 | . 1 . Melee Attacks . | . . . Impact . | . . . Slashing . | . . . Piercing . | . . . Sneak Attacks . | . . . Combat Hostiles . | . . . Follow-up Attacks . | . . . Damage Inflicted 372 | . 242 130 Guns 342 | . 242 100 Cannons . | . . . Explosions . | . . . Melee . | . . . Ramming 30 | . . 30 Kinetic 242 | . 242 . Thermal 100 | . . 100 Explosive . | . . . Electromagnetic . | . . . Impact . | . . . Slashing . | . . . Piercing . | . . . Highest Corruption 6 | . . 6 Average Corruption 4 | . . 4 Corruption Purged . | . . . Corruption Blocked . | . . . Overload Shots . | . . . Overflow Damage . | . . . Projectiles . | . . . Explosions . | . . . Melee . | . . . Knockbacks 1 | . . 1 Impact 1 | . . 1 Kinetic . | . . . Secondary . | . . . Self-Inflicted Damage 10 | . . 10 Shots . | . . . Rammed 20 | . . 20 Targets Rammed 20 | . . 20 Kicked . | . . . Crushed . | . . . Highest Temperature 30 | . 28 30 Average Temperature 9 | . 8 11 Received Heat Transfer 471 | . 300 171 Siege Activations . | . . . Robots Corrupted . | . . . Combat Hostiles . | . . . Parts Fried . | . . . Impact Corruptions . | . . . Robots Melted . | . . . Combat Hostiles . | . . . Parts Melted 1 | . . 1 Heat Transferred 223 | . . 223 Parts Sabotaged . | . . . Parts Stolen . | . . . Parts Stripped . | . . . Power Chain Reactions . | . . . Alert | -11 -10 -9 ------- Run | Yrd Mat Mat Peak Influence 94 | . 70 94 Initial 29 | . . 29 Average 38 | . 34 60 Maximum Alert Level . | . . . Low Security (%) 100 | 100 100 100 Level 1 . | . . . Level 2 . | . . . Level 3 . | . . . Level 4 . | . . . Level 5 . | . . . High Security . | . . . Max Security . | . . . Squads Dispatched 3 | . 2 1 Investigation 1 | . . 1 Extermination . | . . . Reinforcement 2 | . 2 . Assault . | . . . Garrison . | . . . Intercept . | . . . Searches Triggered . | . . . Construction Impeded . | . . . Haulers Reinforced . | . . . Active Scanning Responses . | . . . Cargo Convoy Interrupts . | . . . Stealth | -11 -10 -9 --------- Run | Yrd Mat Mat Distress Signals 1 | . 1 . Communications Jammed . | . . . Distress Signals . | . . . Times Spotted 10 | . 5 5 Peak Tracking Total 5 | . 3 5 Tactical Retreats 3 | . 1 2 Traps | -11 -10 -9 ------- Run | Yrd Mat Mat Traps Triggered 1 | . 1 . Indirectly . | . . . Trap Hack Attempts . | . . . Triggered . | . . . Disarmed . | . . . Reprogrammed . | . . . Reused . | . . . Traps Extracted . | . . . Installed . | . . . Triggered . | . . . Machines | -11 -10 -9 ---------- Run | Yrd Mat Mat Machines Disabled . | . . . Max in Single Turn . | . . . Machines Repaired . | . . . Machines Dismantled . | . . . Machines Sabotaged . | . . . Overloaded Fab Kills . | . . . Hacking | -11 -10 -9 --------- Run | Yrd Mat Mat Machines Accessed 2 | . 1 1 Terminals 2 | . 1 1 Fabricators . | . . . Repair Stations . | . . . Recycling Units . | . . . Scanalyzers . | . . . Garrison Access . | . . . Total Hacks 8 | . 2 6 Successful 3 | . . 3 Failed 5 | . 2 3 Catastrophic . | . . . Database Lockouts . | . . . Manual . | . . . Terminals 8 | . 2 6 Fabricators . | . . . Repair Stations . | . . . Recycling Units . | . . . Scanalyzers . | . . . Garrison Access . | . . . Terminal Hacks 3 | . . 3 Locate Traps 1 | . . 1 Transport Status 1 | . . 1 Hauler Manifests 1 | . . 1 Fabricator Hacks . | . . . Repair Station Hacks . | . . . Recycling Unit Hacks . | . . . Scanalyzer . | . . . Garrison Access Hacks . | . . . Unauthorized Hacks . | . . . Terminals . | . . . Fabricators . | . . . Repair Stations . | . . . Recycling Units . | . . . Scanalyzers . | . . . Garrison Access . | . . . Data Cores Recovered . | . . . Used . | . . . Hacking Detections 2 | . 1 1 Full Trace Events 1 | . . 1 Feedback Events . | . . . Feedback Blocked . | . . . Robot Schematics Acquired . | . . . Robots Built . | . . . Authchips . | . . . Time . | . . . Total Robot Build Rating . | . . . Part Schematics Acquired . | . . . Parts Built . | . . . Authchips . | . . . Time . | . . . Total Part Build Rating . | . . . Parts Repaired . | . . . Time . | . . . Parts Recycled . | . . . Recycled Matter . | . . . Retrieved Matter . | . . . Retrieved Components . | . . . Parts Scanalyzed . | . . . Part Schematics Acquired . | . . . Parts Damaged . | . . . Bothacking | -11 -10 -9 ------------ Run | Yrd Mat Mat Used RIF Installer . | . . . Robots Hacked . | . . . Non-combat . | . . . Combat . | . . . Robot Hacks Applied . | . . . Relay Couplers Released . | . . . Fabnet Peak Effective % . | . . . Robots Rewired . | . . . Allies Hacked . | . . . Hacks Repelled . | . . . Allies | -11 -10 -9 -------- Run | Yrd Mat Mat Total Allies . | . . . Largest Group . | . . . Highest-Rated Group . | . . . Highest-Rated Ally . | . . . Total Orders . | . . . Ally Attacks . | . . . Total Damage . | . . . Kills . | . . . Allies Corrupted . | . . . Allies Melted . | . . . Intel | -11 -10 -9 ------- Run | Yrd Mat Mat Robot Analysis Total . | . . . Derelict Logs Recovered . | . . . Drone Launches . | . . . Drone Recoveries . | . . . Exploration | -11 -10 -9 ------------- Run | Yrd Mat Mat Turns Passed 395 | 28 261 106 Spaces Moved 194 | 35 112 47 Core 64 | 34 . 30 Treads 130 | 1 112 17 Legs . | . . . Wheels . | . . . Hover . | . . . Flight . | . . . Fastest Speed 50 | 50 160 50 Average Speed 129 | 53 160 114 Slowest Speed 160 | 160 160 160 Overloaded Moves . | . . . Propulsion Burnouts . | . . . Robots Hopped . | . . . Cave-ins Triggered . | . . . Exploration Rate (%) 10 | 3 20 8 Regions Visited 2 Branch Regions . Pre-discovered Areas . | . . . Known Exits Taken . | . . . Unknown Exits Taken 2 | 1 1 . Scrap Searched . | . . . Spaces Dug . | . . . Terrain Destroyed . | . . . Melee . | . . . Projectile . | . . . AOE . | . . . Terrain Rammed . | . . . Walls Destroyed . | . . . Machines Disabled . | . . . Actions | -11 -10 -9 --------- Run | Yrd Mat Mat Total 293 | 44 161 88 Wait 12 | . 7 5 Move 192 | 34 111 47 Hop . | . . . Pick Up 8 | 5 1 2 Fast Attach 2 | . . 2 Attach 8 | 5 1 2 Detach . | . . . Swap . | . . . Drop . | . . . Fire 51 | . 41 10 Melee . | . . . Ram 20 | . . 20 Kick . | . . . Crush . | . . . Escape Stasis . | . . . Rewire . | . . . Trap . | . . . Miscellaneous . | . . . Route ------- -11/Scrapyard -10/Materials -9/Materials History --------- Turn | Location | Event 3 | -11/Scrapyard | Discovered new exit (range 15) 29 | -11/Scrapyard | Entered Materials 221 | -10/Materials | Discovered new exit (range 16) 290 | -10/Materials | Entered another Materials area 290 | -9/Materials | Evolved 2 slots: Propulsion x1, Weapon x1 301 | -9/Materials | Build established: Mutant 360 | -9/Materials | Core integrity fell below 50% 388 | -9/Materials | Core integrity fell below 20% 396 | -9/Materials | Destroyed by Y-45 Defender with Heavy Assault Rifle Last Messages --------------- 2x Sensor Array A-02 Transporter 3x Imp. Assault Rifle (1 escort) A-02 Transporter 2x Imp. Medium Laser 1x Imp. Flight Unit 00374_ ALERT: Suspicious activity at Terminal M004. Dispatching Investigation squad. 00376_ Slammed into Y-45 Defender. 00377_ Core Shielding destroyed. 00377_ System corrupted by crushing effect (+3). 00377_ Destabilizing: Core damaged (-8). 00378_ Slammed into Y-45 Defender. 00378_ Destabilizing: System corrupted (+1). 00379_ Slammed into Y-45 Defender. 00387_ Lgt. Ion Engine destroyed. 00388_ Slammed into Y-45 Defender. 00389_ Destabilizing: Core damaged (-8). 00390_ Slammed into Y-45 Defender. Map ----- +----------------------------------------------------+ | ????????????? ^ ^? #??????????????? | | ????????????? ^? T??????????????? | | ????????????? """ #??????????????? | | ????????????## ^""" ##?????????????? | | ????????????"" """ ""?????????????? | | ????????????"T ^ T"?????????????? | | ?????????????" ^ ""?????????????? | | ?????????????# #??????????????? | | ?????????????# #??????????????? | | ??????????#### " #??????????????? | | ??????????# T ###### ?????? | | ??????????# " ?????? | | ??????????# ????? | | ??????????# ??????? | | ??????????# ######??????????? | | ??????????# ####% #???????????????? | | ??????????# #??#= #???????????????? | | ??????????# #??# #???????????????? | | ??????????# #??# #???????????????? | | ??????????# #??# #???????????????? | | ??????????# #?## ##??????????????? | | ??????????# #?# #??????????????? | | ????????# #########% #??????????????? | | ????????# %% %%% +??????????????? | | ????????########+## % #??????????????? | | ???????????# % @ # #??????????????? | | ???????????#%%%%""#######??????????????? | | ???????????#%%%YT"#????????????????????? | | ???????????# ""#????????????????????? | | ???????????# #????????????????????? | | ???????????# #????????????????????? | | ???????????########????????????????????? | | ???????????????????????????????????????? | | ???????????????????????????????????????? | | ???????????????????????????????????????? | | ???????????????????????????????????????? | | ???????????????????????????????????????? | | ???????????????????????????????????????? | | ???????????????????????????????????????? | | ???????????????????????????????????????? | | ???????????????????????????????????????? | | | | | | | | | | | | | | | | | | | +----------------------------------------------------+ Best States ------------- Heat Dissipation 38 Energy Generation 10 Energy Capacity 125 Matter Stores 300 Matter Capacity 300 Sight Range 16 Terrain Scan Density 10 Core Shielding 20 Evasion (%) 50 Recoil Reduction 2 Item Schematics ----------------- None Robot Schematics ------------------ None Fabricated ------------ Nothing Alien Tech Used ----------------- None Achievements -------------- None Challenges ------------ None Game ------ Seed AutogunBombardmentBooster Manual? 0 Play Time 00:07:06 Cumulative 22.0 hours Start 2024.04.12 @ 19:02:09 End 2024.04.14 @ 17:58:08 Sessions 6 Manual Loads 0 Difficulty Rogue Special Mode None Game No. 19 Rogue 19 Adventurer 0 Explorer 0 Win Type - Total 0 Types 0/0/0/0/0/0/0/0/0 Lore% 19 Gallery% 27 Achievement% 26 Wizard Run 0 Options --------- Layout 1 ASCII 0 Keyboard 0 Movement Numpad Keybinds 0 Fullscreen 1 Font 24/Terminus Map View 50x35 Zoom Use 0% Tactical HUD 1 Map Filters NONE Filters NONE Steam 0 RUN: 0c66e6b1-e275-4823-b66d-8e88b7cb9e3a